fUST/lending_fUST_20250704
["ID","MTS","AMOUNT","RATE_DAILY","PERIOD"]
[369385116,1751562652197,-151.011,0.00020646,2]
[369385118,1751562652206,-150.0,0.00020646,2]
[369385120,1751562652215,-217.485,0.00020646,2]
[369385122,1751562652225,-966.0,0.00020646,2]
[369385124,1751562652234,-1446.68549727,0.00020715,2]
[369385126,1751562652245,-460.0,0.00020821,2]
[369385128,1751562652255,-177.16,0.00020821,2]
[369385130,1751562652265,-3909.92,0.00020821,2]
[369385132,1751562652274,-1107.88,0.00020821,2]
[369385134,1751562652283,-2575.35,0.00020821,2]
[369385136,1751562652292,-2549.45,0.00020821,2]
[369385138,1751562652301,-460.0,0.00020821,2]
[369385140,1751562652310,-1158.99,0.00020821,2]
[369385142,1751562652319,-992.72,0.00020821,2]
[369385144,1751562652329,-2475.14,0.00020821,2]
[369385146,1751562652342,-982.65,0.00020821,2]
[369385148,1751562652352,-460.0,0.00020821,2]
[369385150,1751562652362,-460.0,0.00020821,2]
[369385152,1751562652371,-2775.08,0.00020821,2]
[369385154,1751562652380,-2110.18,0.00020821,2]
[369385156,1751562652389,-1040.84,0.00020821,2]
[369385158,1751562652398,-573.92,0.00020821,2]
[369385160,1751562652407,-573.89,0.00020821,2]
[369385162,1751562652417,-202.64,0.00020821,2]
[369385164,1751562652426,-1705.66,0.00020821,2]
[369385166,1751562652435,-460.0,0.00020821,2]
[369385168,1751562652444,-817.79,0.00020821,2]
[369385170,1751562652455,-460.0,0.00020821,2]
[369385173,1751562652465,-460.0,0.00020821,2]
[369385175,1751562652475,-2092.36,0.00020821,2]
[369385177,1751562652485,-678.46,0.00020821,2]
[369385178,1751562652495,-3743.2,0.00020821,2]
[369385180,1751562652504,-460.0,0.00020821,2]
[369385183,1751562652515,-854.62,0.00020821,2]
[369385184,1751562652525,-460.0,0.00020821,2]
[369385187,1751562652536,-856.3,0.00020821,2]
[369385188,1751562652546,-1224.49,0.00020821,2]
[369385190,1751562652555,-978.4,0.00020821,2]
[369385192,1751562652564,-1544.58,0.00020821,2]
[369385194,1751562652574,-500.0,0.00020821,2]
[369385197,1751562652584,-151.0,0.000209,4]
[369385199,1751562652594,-151.0,0.000209,3]
[369385201,1751562652603,-1500.0,0.00020993,2]
[369385203,1751562652612,-1500.0,0.00020993,2]
[369385204,1751562652621,-500.81283799,0.00020993,2]
[369385206,1751562652631,-1500.0,0.00020993,2]
[369385208,1751562652640,-500.0,0.00020993,2]
[369385210,1751562652650,-1500.0,0.00020993,2]
[369385212,1751562652660,-1501.07624275,0.00020993,2]
[369385215,1751562652670,-1800.0,0.00020993,2]
[369385216,1751562652680,-700.3101293,0.00020993,2]
[369385218,1751562652689,-1502.75949213,0.00020993,2]
[369385220,1751562652699,-503.10034898,0.00020993,2]
[369385222,1751562652708,-1500.0,0.00020993,2]
[369385224,1751562652718,-1500.0,0.00020993,2]
[369385239,1751562652849,-3000.0,0.00021,2]
[369385241,1751562652862,-3000.0,0.0002101,2]
[369385243,1751562652872,-3000.0,0.0002102,2]
[369385245,1751562652882,-3000.0,0.0002103,2]
[369385247,1751562652891,-621.0,0.00021035,2]
[369385250,1751562652901,-3000.0,0.0002104,2]
[369385252,1751562652911,-3000.0,0.0002105,2]
[369385254,1751562652920,-3000.0,0.0002106,2]
[369385256,1751562652930,-529.0,0.0002107,2]
[369385258,1751562652939,-3000.0,0.0002107,2]
[369385260,1751562652949,-3000.0,0.0002108,2]
[369385262,1751562652958,-3000.0,0.0002109,2]
[369385264,1751562652967,-283.74,0.00021095,2]
[369385266,1751562652976,-3909.92,0.00021095,2]
[369385268,1751562652986,-1107.88,0.00021095,2]
[369385270,1751562652995,-2575.35,0.00021095,2]
[369385272,1751562653005,-2549.45,0.00021095,2]
[369385274,1751562653014,-460.0,0.00021095,2]
[369385276,1751562653024,-1158.99,0.00021095,2]
[369385278,1751562653033,-992.72,0.00021095,2]
[369385280,1751562653043,-2475.14,0.00021095,2]
[369385282,1751562653052,-982.65,0.00021095,2]
[369385284,1751562653062,-460.0,0.00021095,2]
[369385286,1751562653071,-460.0,0.00021095,2]
[369385288,1751562653080,-2775.08,0.00021095,2]
[369385290,1751562653089,-2110.18,0.00021095,2]
[369385292,1751562653099,-1040.84,0.00021095,2]
[369385294,1751562653108,-573.89,0.00021095,2]
[369385296,1751562653117,-1705.66,0.00021095,2]
[369385298,1751562653126,-460.0,0.00021095,2]
[369385300,1751562653135,-817.79,0.00021095,2]
[369385302,1751562653144,-266.76,0.00021095,2]
[369385304,1751562653153,-460.0,0.00021095,2]
[369385306,1751562653163,-2092.36,0.00021095,2]
[369385307,1751562653173,-678.46,0.00021095,2]
[369385310,1751562653182,-3743.2,0.00021095,2]
[369385312,1751562653192,-161.24,0.00021095,2]
[369385313,1751562653202,-854.62,0.00021095,2]
[369385315,1751562653211,-460.0,0.00021095,2]
[369385317,1751562653222,-856.3,0.00021095,2]
[369385319,1751562653232,-1224.49,0.00021095,2]
[369385321,1751562653241,-978.4,0.00021095,2]
[369385323,1751562653251,-1544.58,0.00021095,2]
[369385325,1751562653261,-3000.0,0.000211,2]
[369385327,1751562653270,-3000.0,0.0002111,2]
[369385329,1751562653279,-3000.0,0.0002112,2]
[369385331,1751562653289,-3000.0,0.0002113,2]
[369385334,1751562653299,-3000.0,0.0002114,2]
[369385336,1751562653308,-1291.77,0.00021144,2]
[369385338,1751562653317,-2600.3191144,0.00021148,2]
[369385340,1751562653326,-3000.0,0.0002115,2]
[369385342,1751562653336,-3000.0,0.0002116,2]
[369385344,1751562653347,-3000.0,0.0002117,2]
[369385346,1751562653357,-3000.0,0.0002118,2]
[369385348,1751562653366,-3000.0,0.0002119,2]
[369385350,1751562653375,-3000.0,0.000212,2]
[369385352,1751562653385,-773.79877995,0.0002121,2]
[369385355,1751562653408,-500.0,0.00019907,2]
[369385357,1751562653417,-2189.90491564,0.0002121,2]
[369385359,1751562653429,-36.29630441,0.0002121,2]
[369385362,1751562653439,-478.70369559,0.00021213,2]
[369385364,1751562653451,-50.29630441,0.00021213,2]
[369385366,1751562653460,-3000.0,0.0002122,2]
[369385368,1751562653470,-1808.40007818,0.0002123,2]
[369385370,1751562653484,-1191.59992182,0.0002123,2]
[369385372,1751562653494,-3000.0,0.0002124,2]
[369385374,1751562653504,-3000.0,0.0002125,2]
[369385376,1751562653513,-1896.37923435,0.0002126,2]
[369385388,1751562653620,-167.18271929,0.00016338,2]
[369385390,1751562653630,-482.56487329,0.00019897,2]
[369387519,1751562750789,200.0,0.00026225,120]
[369387523,1751562903214,2626.82701343,0.00024679,120]
[369387524,1751562903268,868.06138506,0.00024679,120]
[369387526,1751563111314,200.0,0.00024586,120]
[369387527,1751563290914,200.0,0.00026333,120]
[369387528,1751563372786,-211.8256299,0.00015117,2]
[369387529,1751563374868,-162.5595628,0.00015117,2]
[369387530,1751563379206,-36.55947081,0.00015117,2]
[369387531,1751563410756,200.0,0.00023815,120]
[369387539,1751563601612,230.757581,0.00013699,2]
[369387540,1751563635149,-300.0,0.00015214,2]
[369387541,1751563635170,-688.96801804,0.00015215,2]
[369387542,1751563639158,-427.41425803,0.00015215,2]
[369387590,1751563732309,24900.0,0.00014664,2]
[369387717,1751563832318,-439.61840894,0.00015195,2]
[369387721,1751563832328,-300.0,0.00015213,2]
[369387724,1751563832338,-300.0,0.00015213,2]
[369387727,1751563832347,-1255.43248033,0.00015214,2]
[369387729,1751563832357,-160.0,0.00015215,2]
[369387731,1751563832367,-160.0,0.00015216,2]
[369387733,1751563832376,-649.65513319,0.00016337,2]
[369387735,1751563832385,-19351.54318987,0.00016338,2]
[369387737,1751563832398,-2414.68663832,0.00016338,2]
[369387740,1751563832413,-554.23452349,0.00016338,2]
[369387742,1751563832424,-2252.5480884,0.00016338,2]
[369387818,1751563838571,-500.0,0.00015213,2]
[369387820,1751563838581,-500.0,0.00015213,2]
[369387822,1751563838591,-358.60283716,0.00015213,2]
[369387824,1751563838607,-500.0,0.00015213,2]
[369387826,1751563838617,-239.63075264,0.00015213,2]
[369387828,1751563838626,-500.0,0.00015213,2]
[369387830,1751563838635,-500.0,0.00015213,2]
[369387832,1751563838644,-500.0,0.00015213,2]
[369387834,1751563838654,-500.0,0.00015213,2]
[369387836,1751563838664,-500.0,0.00015213,2]
[369387838,1751563838673,-500.0,0.00015213,2]
[369387840,1751563838683,-500.0,0.00015213,2]
[369387842,1751563838692,-500.0,0.00015213,2]
[369387844,1751563838701,-500.0,0.00015213,2]
[369387846,1751563838710,-213.99977745,0.00015213,2]
[369387848,1751563838719,-500.0,0.00015213,2]
[369387850,1751563838729,-500.0,0.00015213,2]
[369387852,1751563838739,-500.0,0.00015213,2]
[369387854,1751563838748,-500.0,0.00015213,2]
[369387856,1751563838758,-397.93310096,0.00015213,2]
[369387858,1751563838767,-500.0,0.00015213,2]
[369387860,1751563838776,-500.0,0.00015213,2]
[369387862,1751563838786,-500.0,0.00015213,2]
[369387864,1751563838795,-500.0,0.00015213,2]
[369387866,1751563838806,-500.0,0.00015213,2]
[369387868,1751563838815,-500.0,0.00015213,2]
[369387870,1751563838825,-500.0,0.00015213,2]
[369387872,1751563838834,-650.0,0.00015213,2]
[369387874,1751563838843,-336.71064278,0.00015213,2]
[369387876,1751563838853,-500.0,0.00015213,2]
[369387878,1751563838863,-500.0,0.00015213,2]
[369387880,1751563838872,-500.0,0.00015213,2]
[369387882,1751563838881,-500.0,0.00015213,2]
[369387884,1751563838890,-500.0,0.00015213,2]
[369387885,1751563838899,-500.0,0.00015213,2]
[369387887,1751563838909,-500.0,0.00015213,2]
[369387889,1751563838919,-500.0,0.00015213,2]
[369387891,1751563838928,-500.0,0.00015213,2]
[369387892,1751563838937,-500.0,0.00015213,2]
[369387894,1751563838946,-500.0,0.00015213,2]
[369387896,1751563838955,-500.0,0.00015213,2]
[369387898,1751563838965,-500.0,0.00015213,2]
[369387900,1751563838974,-550.0,0.00015213,2]
[369387901,1751563838983,-500.0,0.00015213,2]
[369387903,1751563838992,-500.0,0.00015213,2]
[369387905,1751563839002,-500.0,0.00015213,2]
[369387907,1751563839012,-500.0,0.00015213,2]
[369387909,1751563839022,-500.0,0.00015213,2]
[369387910,1751563839031,-500.0,0.00015213,2]
[369387912,1751563839041,-500.0,0.00015213,2]
[369387914,1751563839050,-500.0,0.00015213,2]
[369387916,1751563839060,-500.0,0.00015213,2]
[369387918,1751563839070,-500.0,0.00015213,2]
[369387919,1751563839081,-500.0,0.00015213,2]
[369387921,1751563839093,-188.3575587,0.00015213,2]
[369387923,1751563839102,-500.0,0.00015213,2]
[369387925,1751563839112,-500.0,0.00015213,2]
[369387927,1751563839121,-500.0,0.00015213,2]
[369387928,1751563839130,-500.0,0.00015213,2]
[369387930,1751563839141,-500.0,0.00015213,2]
[369387932,1751563839151,-500.0,0.00015213,2]
[369387934,1751563839160,-500.0,0.00015213,2]
[369387935,1751563839170,-500.0,0.00015213,2]
[369387937,1751563839181,-500.0,0.00015213,2]
[369387939,1751563839191,-35555.64313903,0.00016338,2]
[369387941,1751563839200,-151.0,0.00016428,2]
[369387943,1751563839209,-151.0,0.00016428,2]
[369387944,1751563839218,-151.0,0.00016428,2]
[369387946,1751563839227,-151.0,0.00016428,2]
[369387948,1751563839236,-151.0,0.00016428,2]
[369387950,1751563839246,-151.0,0.00016428,2]
[369387951,1751563839255,-151.0,0.00016428,2]
[369387953,1751563839265,-151.0,0.00016428,2]
[369387955,1751563839274,-151.0,0.00016428,2]
[369387957,1751563839283,-151.0,0.00016428,2]
[369387959,1751563839293,-151.0,0.00016428,2]
[369387960,1751563839302,-460.0,0.00016438,2]
[369387962,1751563839311,-461.50587157,0.00016438,2]
[369387964,1751563839320,-460.0,0.00016438,2]
[369387966,1751563839329,-460.0,0.00016438,2]
[369387983,1751563839339,-460.0,0.00016438,2]
[369387985,1751563839523,-460.0,0.00016438,2]
[369387987,1751563839533,-460.0,0.00016438,2]
[369387989,1751563839542,-460.0,0.00016438,2]
[369387991,1751563839552,-460.0,0.00016438,2]
[369387992,1751563839561,-460.0,0.00016438,2]
[369387994,1751563839571,-326.23546762,0.00016438,2]
[369387996,1751563839580,-275.81320816,0.00016438,2]
[369387998,1751563839589,-460.0,0.00016438,2]
[369388000,1751563839598,-460.0,0.00016438,2]
[369388002,1751563839607,-460.0,0.00016438,2]
[369388003,1751563839618,-460.0,0.00016438,2]
[369388005,1751563839627,-436.70785237,0.00016438,2]
[369388007,1751563839636,-461.31,0.00016438,2]
[369388009,1751563839645,-460.0,0.00016438,2]
[369388011,1751563839655,-154.71977761,0.00016438,2]
[369388013,1751563839665,-460.0,0.00016438,2]
[369388015,1751563839675,-460.0,0.00016438,2]
[369388017,1751563839685,-460.0,0.00016438,2]
[369388018,1751563839694,-160.0,0.00016438,2]
[369388020,1751563839704,-340.77018478,0.00016438,2]
[369388022,1751563839714,-460.0,0.00016438,2]
[369388023,1751563839723,-565.35306032,0.00016438,2]
[369388025,1751563839733,-460.0,0.00016438,2]
[369388027,1751563839742,-460.0,0.00016438,2]
[369388029,1751563839751,-460.0,0.00016438,2]
[369388031,1751563839763,-460.0,0.00016438,2]
[369388033,1751563839773,-460.0,0.00016438,2]
[369388034,1751563839783,-455.09578079,0.00016438,2]
[369388036,1751563839793,-460.0,0.00016438,2]
[369388038,1751563839803,-384.27074474,0.00016438,2]
[369388040,1751563839813,-460.0,0.00016438,2]
[369388042,1751563839823,-594.71492387,0.00016438,2]
[369388044,1751563839833,-460.0,0.00016438,2]
[369388046,1751563839842,-460.0,0.00016438,2]
[369388048,1751563839852,-380.47141466,0.00016438,2]
[369388049,1751563839861,-460.0,0.00016438,2]
[369388051,1751563839870,-460.0,0.00016438,2]
[369388053,1751563839880,-460.0,0.00016438,2]
[369388055,1751563839890,-460.0,0.00016438,2]
[369388057,1751563839899,-460.0,0.00016438,2]
[369388059,1751563839909,-460.0,0.00016438,2]
[369388061,1751563839918,-460.0,0.00016438,2]
[369388063,1751563839927,-460.0,0.00016438,2]
[369388064,1751563839936,-431.73699097,0.00016438,2]
[369388066,1751563839945,-460.0,0.00016438,2]
[369388068,1751563839955,-460.0,0.00016438,2]
[369388070,1751563839964,-460.0,0.00016438,2]
[369388072,1751563839973,-460.0,0.00016438,2]
[369388074,1751563839982,-460.0,0.00016438,2]
[369388076,1751563839991,-460.0,0.00016438,2]
[369388077,1751563840001,-462.31124312,0.00016438,2]
[369388079,1751563840012,-460.0,0.00016438,2]
[369388081,1751563840021,-460.0,0.00016438,2]
[369388083,1751563840031,-460.0,0.00016438,2]
[369388085,1751563840040,-151.32768457,0.00016438,2]
[369388087,1751563840050,-460.0,0.00016438,2]
[369388089,1751563840061,-460.0,0.00016438,2]
[369388091,1751563840073,-460.0,0.00016438,2]
[369388092,1751563840083,-941.7,0.00016438,2]
[369388094,1751563840093,-418.3165367,0.00016438,2]
[369388096,1751563840103,-460.0,0.00016438,2]
[369388098,1751563840114,-460.0,0.00016438,2]
[369388100,1751563840124,-460.0,0.00016438,2]
[369388102,1751563840134,-460.0,0.00016438,2]
[369388104,1751563840143,-460.0,0.00016438,2]
[369388105,1751563840154,-460.0,0.00016438,2]
[369388107,1751563840164,-1000.0,0.00016438,2]
[369388109,1751563840173,-1000.0,0.00016438,2]
[369388111,1751563840183,-1000.0,0.00016438,2]
[369388113,1751563840193,-1000.0,0.00016438,2]
[369388115,1751563840203,-1000.0,0.00016438,2]
[369388117,1751563840213,-460.0,0.00016438,2]
[369388118,1751563840223,-460.0,0.00016438,2]
[369388120,1751563840233,-460.0,0.00016438,2]
[369388122,1751563840243,-460.0,0.00016438,2]
[369388124,1751563840253,-427.69039294,0.00016438,2]
[369388126,1751563840262,-460.0,0.00016438,2]
[369388128,1751563840272,-460.0,0.00016438,2]
[369388130,1751563840282,-460.0,0.00016438,2]
[369388132,1751563840293,-162.91803393,0.00016438,2]
[369388134,1751563840304,-460.0,0.00016438,2]
[369388135,1751563840317,-460.0,0.00016438,2]
[369388137,1751563840327,-460.0,0.00016438,2]
[369388139,1751563840337,-460.0,0.00016438,2]
[369388141,1751563840347,-460.0,0.00016438,2]
[369388143,1751563840357,-415.47497737,0.00016438,2]
[369388145,1751563840367,-460.0,0.00016438,2]
[369388146,1751563840376,-460.0,0.00016438,2]
[369388148,1751563840386,-460.0,0.00016438,2]
[369388150,1751563840395,-460.74298346,0.00016438,2]
[369388152,1751563840405,-460.0,0.00016438,2]
[369388154,1751563840414,-460.0,0.00016438,2]
[369388156,1751563840424,-460.0,0.00016438,2]
[369388158,1751563840434,-460.0,0.00016438,2]
[369388160,1751563840444,-218.14310325,0.00016438,2]
[369388161,1751563840453,-460.0,0.00016438,2]
[369388163,1751563840463,-460.0,0.00016438,2]
[369388165,1751563840473,-1061.72,0.00016438,2]
[369388167,1751563840482,-473.50936555,0.00016438,2]
[369388169,1751563840490,-460.0,0.00016438,2]
[369388171,1751563840500,-252.69793612,0.00016438,2]
[369388173,1751563840509,-527.61,0.00016438,2]
[369388175,1751563840520,-500.0,0.00016438,2]
[369388176,1751563840529,-1182.01,0.00016438,2]
[369388178,1751563840539,-460.0,0.00016438,2]
[369388180,1751563840548,-460.0,0.00016438,2]
[369388182,1751563840558,-460.0,0.00016438,2]
[369388184,1751563840567,-460.0,0.00016438,2]
[369388186,1751563840577,-460.0,0.00016438,2]
[369388188,1751563840585,-460.0,0.00016438,2]
[369388189,1751563840595,-460.0,0.00016438,2]
[369388191,1751563840604,-460.0,0.00016438,2]
[369388193,1751563840613,-460.0,0.00016438,2]
[369388195,1751563840623,-460.0,0.00016438,2]
[369388197,1751563840632,-460.0,0.00016438,2]
[369388200,1751563840641,-2701.36,0.00016438,2]
[369388203,1751563840651,-460.0,0.00016438,2]
[369388205,1751563840660,-460.0,0.00016438,2]
[369388208,1751563840669,-460.0,0.00016438,2]
[369388210,1751563840679,-460.0,0.00016438,2]
[369388212,1751563840688,-460.0,0.00016438,2]
[369388214,1751563840697,-460.0,0.00016438,2]
[369388216,1751563840706,-460.0,0.00016438,2]
[369388218,1751563840716,-2515.67,0.00016438,2]
[369388220,1751563840725,-460.0,0.00016438,2]
[369388221,1751563840736,-460.0,0.00016438,2]
[369388223,1751563840745,-460.0,0.00016438,2]
[369388225,1751563840754,-460.0,0.00016438,2]
[369388227,1751563840764,-460.0,0.00016438,2]
[369388229,1751563840774,-460.0,0.00016438,2]
[369388231,1751563840783,-460.0,0.00016438,2]
[369388233,1751563840792,-460.0,0.00016438,2]
[369388235,1751563840801,-460.0,0.00016438,2]
[369388237,1751563840811,-997.47,0.00016438,2]
[369388238,1751563840821,-460.0,0.00016438,2]
[369388240,1751563840831,-2537.84,0.00016438,2]
[369388242,1751563840841,-216.57034481,0.00016438,2]
[369388244,1751563840850,-2022.25,0.00016438,2]
[369388246,1751563840860,-460.0,0.00016438,2]
[369388248,1751563840869,-460.0,0.00016438,2]
[369388249,1751563840878,-460.0,0.00016438,2]
[369388251,1751563840888,-460.0,0.00016438,2]
[369388253,1751563840898,-1043.59,0.00016438,2]
[369388255,1751563840908,-460.0,0.00016438,2]
[369388257,1751563840917,-460.0,0.00016438,2]
[369388259,1751563840927,-460.0,0.00016438,2]
[369388261,1751563840936,-460.0,0.00016438,2]
[369388263,1751563840946,-460.0,0.00016438,2]
[369388264,1751563840956,-460.0,0.00016438,2]
[369388266,1751563840965,-460.0,0.00016438,2]
[369388268,1751563840973,-783.72,0.00016438,2]
[369388270,1751563840982,-460.0,0.00016438,2]
[369388272,1751563840991,-460.0,0.00016438,2]
[369388274,1751563841001,-460.0,0.00016438,2]
[369388276,1751563841010,-460.0,0.00016438,2]
[369388278,1751563841019,-460.0,0.00016438,2]
[369388279,1751563841028,-460.0,0.00016438,2]
[369388281,1751563841038,-2875.89,0.00016438,2]
[369388283,1751563841047,-460.0,0.00016438,2]
[369388285,1751563841057,-460.0,0.00016438,2]
[369388287,1751563841066,-460.0,0.00016438,2]
[369388288,1751563841076,-549.97,0.00016438,2]
[369388290,1751563841087,-460.0,0.00016438,2]
[369388292,1751563841097,-460.0,0.00016438,2]
[369388294,1751563841106,-3697.57,0.00016438,2]
[369388296,1751563841116,-460.0,0.00016438,2]
[369388297,1751563841126,-1173.47,0.00016438,2]
[369388299,1751563841135,-376.7302993,0.00016438,2]
[369388301,1751563841144,-460.0,0.00016438,2]
[369388303,1751563841154,-460.0,0.00016438,2]
[369388305,1751563841164,-460.0,0.00016438,2]
[369388306,1751563841174,-1000.0,0.00016438,2]
[369388308,1751563841183,-460.0,0.00016438,2]
[369388310,1751563841192,-1662.84,0.00016438,2]
[369388312,1751563841201,-460.0,0.00016438,2]
[369388314,1751563841210,-460.0,0.00016438,2]
[369388315,1751563841219,-2045.68,0.00016438,2]
[369388317,1751563841228,-460.0,0.00016438,2]
[369388319,1751563841239,-500.0,0.00016438,2]
[369388321,1751563841248,-460.0,0.00016438,2]
[369388323,1751563841258,-460.0,0.00016438,2]
[369388325,1751563841267,-837.76,0.00016438,2]
[369388326,1751563841276,-447.90001521,0.00016438,2]
[369388328,1751563841285,-650.19,0.00016438,2]
[369388330,1751563841294,-820.62,0.00016438,2]
[369388332,1751563841303,-460.0,0.00016438,2]
[369388334,1751563841313,-464.31036695,0.00016438,2]
[369388335,1751563841322,-460.0,0.00016438,2]
[369388337,1751563841331,-460.0,0.00016438,2]
[369388339,1751563841340,-460.0,0.00016438,2]
[369388341,1751563841349,-1704.48,0.00016438,2]
[369388343,1751563841358,-460.0,0.00016438,2]
[369388344,1751563841368,-460.0,0.00016438,2]
[369388346,1751563841377,-460.0,0.00016438,2]
[369388348,1751563841386,-3876.44,0.00016438,2]
[369388350,1751563841395,-937.63,0.00016438,2]
[369388352,1751563841404,-460.0,0.00016438,2]
[369388353,1751563841414,-460.0,0.00016438,2]
[369388355,1751563841422,-460.0,0.00016438,2]
[369388357,1751563841432,-460.0,0.00016438,2]
[369388359,1751563841441,-460.0,0.00016438,2]
[369388361,1751563841451,-462.75392504,0.00016438,2]
[369388363,1751563841460,-460.0,0.00016438,2]
[369388364,1751563841469,-294.30685836,0.00016438,2]
[369388366,1751563841479,-460.0,0.00016438,2]
[369388368,1751563841488,-397.94177096,0.00016438,2]
[369388370,1751563841497,-460.0,0.00016438,2]
[369388372,1751563841506,-460.0,0.00016438,2]
[369388373,1751563841515,-460.0,0.00016438,2]
[369388375,1751563841524,-460.0,0.00016438,2]
[369388377,1751563841534,-460.0,0.00016438,2]
[369388379,1751563841543,-183.85017211,0.00016438,2]
[369388381,1751563841552,-460.0,0.00016438,2]
[369388383,1751563841561,-460.0,0.00016438,2]
[369388384,1751563841570,-460.0,0.00016438,2]
[369388386,1751563841580,-420.0,0.00016646,2]
[369388388,1751563841589,-2094.31040328,0.00016652,2]
[369388390,1751563841598,-1000.0,0.00016711,2]
[369388392,1751563841610,-1000.0,0.00016711,2]
[369388394,1751563841619,-1000.0,0.00016711,2]
[369388396,1751563841628,-151.0,0.00016711,2]
[369388397,1751563841637,-500.0,0.00016711,2]
[369388399,1751563841647,-500.0,0.00016711,2]
[369388401,1751563841656,-151.0,0.00016711,2]
[369388403,1751563841665,-151.0,0.00016711,2]
[369388405,1751563841674,-151.0,0.00016711,2]
[369388406,1751563841683,-151.0,0.00016711,2]
[369388408,1751563841693,-500.0,0.00016711,2]
[369388410,1751563841702,-198.0,0.00016711,2]
[369388412,1751563841712,-151.0,0.00016711,2]
[369388414,1751563841721,-151.0,0.00016711,2]
[369388416,1751563841731,-268.67898299,0.00016712,2]
[369388418,1751563841740,-577.84,0.00016712,2]
[369388419,1751563841749,-460.0,0.00016712,2]
[369388421,1751563841758,-446.47995258,0.00016712,2]
[369388422,1751563841768,-460.0,0.00016712,2]
[369388423,1751563841777,-484.109672,0.00016712,2]
[369388424,1751563841786,-460.0,0.00016712,2]
[369388425,1751563841796,-460.0,0.00016712,2]
[369388426,1751563841805,-460.0,0.00016712,2]
[369388427,1751563841814,-460.0,0.00016712,2]
[369388428,1751563841823,-460.0,0.00016712,2]
[369388429,1751563841832,-460.0,0.00016712,2]
[369388430,1751563841842,-460.0,0.00016712,2]
[369388431,1751563841853,-213.23,0.00016712,2]
[369388432,1751563841863,-460.0,0.00016712,2]
[369388433,1751563841872,-460.0,0.00016712,2]
[369388434,1751563841881,-460.0,0.00016712,2]
[369388435,1751563841891,-941.7,0.00016712,2]
[369388436,1751563841900,-542.05,0.00016712,2]
[369388437,1751563841909,-460.0,0.00016712,2]
[369388438,1751563841919,-460.0,0.00016712,2]
[369388439,1751563841928,-460.0,0.00016712,2]
[369388440,1751563841937,-460.0,0.00016712,2]
[369388441,1751563841946,-460.0,0.00016712,2]
[369388442,1751563841955,-460.0,0.00016712,2]
[369388443,1751563841964,-460.0,0.00016712,2]
[369388444,1751563841973,-460.0,0.00016712,2]
[369388445,1751563841982,-460.0,0.00016712,2]
[369388446,1751563841992,-236.69,0.00016712,2]
[369388447,1751563842001,-392.60810941,0.00016712,2]
[369388448,1751563842010,-174.4757959,0.00016712,2]
[369388449,1751563842020,-460.0,0.00016712,2]
[369388450,1751563842029,-460.0,0.00016712,2]
[369388451,1751563842039,-1061.72,0.00016712,2]
[369388452,1751563842048,-460.0,0.00016712,2]
[369388453,1751563842058,-527.61,0.00016712,2]
[369388454,1751563842068,-1182.01,0.00016712,2]
[369388455,1751563842078,-460.0,0.00016712,2]